fUST/lending_fUST_20250819
["ID","MTS","AMOUNT","RATE_DAILY","PERIOD"]
[380227817,1755618641677,-480.0,0.00019452,2]
[380227818,1755618641686,-440.76445627,0.00019452,2]
[380227819,1755618641696,-480.0,0.00019452,2]
[380227820,1755618641705,-480.0,0.00019452,2]
[380227821,1755618641714,-480.0,0.00019452,2]
[380227822,1755618641723,-610.46,0.00019452,2]
[380227823,1755618641732,-480.0,0.00019452,2]
[380227824,1755618641742,-480.0,0.00019452,2]
[380227825,1755618641752,-480.0,0.00019452,2]
[380227826,1755618641762,-480.0,0.00019452,2]
[380227827,1755618641774,-480.0,0.00019452,2]
[380227828,1755618641784,-480.0,0.00019452,2]
[380227829,1755618641793,-469.8652481,0.00019452,2]
[380227830,1755618641804,-522.41,0.00019452,2]
[380227831,1755618641814,-480.0,0.00019452,2]
[380227832,1755618641824,-480.0,0.00019452,2]
[380227833,1755618641837,-2992.99,0.00019452,2]
[380227834,1755618641848,-445.46148603,0.00019452,2]
[380227835,1755618641857,-461.98463166,0.00019452,2]
[380227836,1755618641990,-480.0,0.00019452,2]
[380227837,1755618642001,-480.0,0.00019452,2]
[380227838,1755618642010,-153.54778986,0.00019452,2]
[380227839,1755618642020,-448.11202833,0.00019452,2]
[380227840,1755618642030,-480.0,0.00019452,2]
[380227841,1755618642039,-480.0,0.00019452,2]
[380227842,1755618642049,-416.73654711,0.00019452,2]
[380227843,1755618642059,-480.0,0.00019452,2]
[380227844,1755618642068,-185.30960158,0.00019452,2]
[380227845,1755618642079,-480.0,0.00019452,2]
[380227846,1755618642088,-461.46200814,0.00019452,2]
[380227847,1755618642098,-824.41,0.00019452,2]
[380227848,1755618642107,-480.0,0.00019452,2]
[380227849,1755618642117,-480.0,0.00019452,2]
[380227850,1755618642127,-463.85154358,0.00019452,2]
[380227851,1755618642136,-480.0,0.00019452,2]
[380227852,1755618642145,-480.0,0.00019452,2]
[380227853,1755618642154,-480.0,0.00019452,2]
[380227854,1755618642164,-480.0,0.00019452,2]
[380227855,1755618642173,-480.0,0.00019452,2]
[380227856,1755618642182,-480.0,0.00019452,2]
[380227857,1755618642191,-480.0,0.00019452,2]
[380227858,1755618642200,-480.0,0.00019452,2]
[380227859,1755618642209,-480.0,0.00019452,2]
[380227860,1755618642219,-480.0,0.00019452,2]
[380227861,1755618642228,-489.17,0.00019452,2]
[380227862,1755618642237,-480.0,0.00019452,2]
[380227863,1755618642246,-480.0,0.00019452,2]
[380227864,1755618642256,-464.4814146,0.00019452,2]
[380227865,1755618642265,-548.22,0.00019452,2]
[380227866,1755618642274,-480.0,0.00019452,2]
[380227867,1755618642283,-480.0,0.00019452,2]
[380227868,1755618642293,-480.0,0.00019452,2]
[380227869,1755618642302,-480.0,0.00019452,2]
[380227870,1755618642312,-520.07,0.00019452,2]
[380227871,1755618642321,-480.0,0.00019452,2]
[380227872,1755618642333,-480.0,0.00019452,2]
[380227873,1755618642343,-1198.36,0.00019452,2]
[380227874,1755618642352,-480.0,0.00019452,2]
[380227875,1755618642362,-429.49970898,0.00019452,2]
[380227876,1755618642371,-480.0,0.00019452,2]
[380227877,1755618642381,-460.0,0.00019452,2]
[380227878,1755618642390,-480.0,0.00019452,2]
[380227879,1755618642399,-480.0,0.00019452,2]
[380227880,1755618642409,-480.0,0.00019452,2]
[380227881,1755618642418,-1089.51,0.00019452,2]
[380227882,1755618642428,-480.0,0.00019452,2]
[380227883,1755618642437,-543.75,0.00019452,2]
[380227884,1755618642447,-240.60915166,0.00019452,2]
[380227885,1755618642456,-480.0,0.00019452,2]
[380227886,1755618642466,-1866.23,0.00019452,2]
[380227887,1755618642475,-480.0,0.00019452,2]
[380227888,1755618642485,-808.6,0.00019452,2]
[380227889,1755618642494,-1534.07,0.00019452,2]
[380227890,1755618642503,-480.0,0.00019452,2]
[380227891,1755618642513,-782.67,0.00019452,2]
[380227892,1755618642522,-480.0,0.00019452,2]
[380227893,1755618642531,-480.0,0.00019452,2]
[380227894,1755618642540,-480.0,0.00019452,2]
[380227895,1755618642549,-2156.47,0.00019452,2]
[380227896,1755618642559,-480.0,0.00019452,2]
[380227897,1755618642568,-850.8,0.00019452,2]
[380227898,1755618642578,-533.17,0.00019452,2]
[380227899,1755618642587,-208.03112568,0.00019452,2]
[380227900,1755618642596,-480.0,0.00019452,2]
[380227901,1755618642605,-480.0,0.00019452,2]
[380227902,1755618642614,-480.0,0.00019452,2]
[380227903,1755618642624,-309.00680071,0.00019452,2]
[380227904,1755618642633,-299.22437161,0.00019452,2]
[380227905,1755618642643,-480.0,0.00019452,2]
[380227906,1755618642652,-232.68491099,0.00019452,2]
[380227907,1755618642661,-1568.73,0.00019452,2]
[380227908,1755618642670,-480.0,0.00019452,2]
[380227909,1755618642680,-480.0,0.00019452,2]
[380227911,1755618642689,-460.0,0.00019452,2]
[380227913,1755618642698,-480.0,0.00019452,2]
[380227915,1755618642708,-480.0,0.00019452,2]
[380227916,1755618642717,-443.96229288,0.00019452,2]
[380227919,1755618642726,-480.0,0.00019452,2]
[380227921,1755618642736,-480.0,0.00019452,2]
[380227923,1755618642745,-480.0,0.00019452,2]
[380227924,1755618642755,-480.0,0.00019452,2]
[380227925,1755618642764,-480.0,0.00019452,2]
[380227926,1755618642777,-505.83,0.00019452,2]
[380227927,1755618642787,-480.0,0.00019452,2]
[380227928,1755618642796,-480.0,0.00019452,2]
[380227929,1755618642807,-480.0,0.00019452,2]
[380227930,1755618642817,-480.0,0.00019452,2]
[380227931,1755618642828,-480.0,0.00019452,2]
[380227932,1755618642839,-480.0,0.00019452,2]
[380227933,1755618642852,-480.0,0.00019452,2]
[380227934,1755618642865,-480.0,0.00019452,2]
[380227935,1755618642875,-480.0,0.00019452,2]
[380227936,1755618642885,-480.0,0.00019452,2]
[380227937,1755618642895,-423.23123391,0.00019452,2]
[380227938,1755618642905,-480.0,0.00019452,2]
[380227939,1755618642914,-480.0,0.00019452,2]
[380227940,1755618642924,-480.0,0.00019452,2]
[380227941,1755618642934,-8244.61,0.00019452,2]
[380227942,1755618642944,-480.0,0.00019452,2]
[380227943,1755618642954,-480.0,0.00019452,2]
[380227944,1755618642966,-440.0,0.00019452,2]
[380227945,1755618642975,-659.66,0.00019452,2]
[380227946,1755618642984,-480.0,0.00019452,2]
[380227947,1755618642994,-976.04,0.00019452,2]
[380227948,1755618643004,-480.0,0.00019452,2]
[380227949,1755618643014,-625.16,0.00019452,2]
[380227950,1755618643024,-480.0,0.00019452,2]
[380227951,1755618643034,-480.0,0.00019452,2]
[380227952,1755618643043,-480.0,0.00019452,2]
[380227953,1755618643053,-480.0,0.00019452,2]
[380227954,1755618643062,-547.61,0.00019452,2]
[380227955,1755618643071,-542.50999721,0.00019452,2]
[380227956,1755618643083,-604.27,0.00019452,2]
[380227957,1755618643092,-480.0,0.00019452,2]
[380227958,1755618643102,-480.0,0.00019452,2]
[380227959,1755618643112,-747.0,0.00019452,2]
[380227960,1755618643123,-480.0,0.00019452,2]
[380227961,1755618643133,-480.0,0.00019452,2]
[380227962,1755618643143,-480.0,0.00019452,2]
[380227963,1755618643153,-480.0,0.00019452,2]
[380227964,1755618643163,-480.0,0.00019452,2]
[380227965,1755618643172,-480.0,0.00019452,2]
[380227966,1755618643182,-800.68,0.00019452,2]
[380227967,1755618643191,-480.0,0.00019452,2]
[380227968,1755618643201,-535.11510845,0.00019452,2]
[380227969,1755618643211,-480.0,0.00019452,2]
[380227970,1755618643220,-480.0,0.00019452,2]
[380227971,1755618643230,-547.63,0.00019452,2]
[380227972,1755618643240,-480.0,0.00019452,2]
[380227973,1755618643249,-461.4081386,0.00019452,2]
[380227974,1755618643259,-480.0,0.00019452,2]
[380227975,1755618643269,-9407.72,0.00019452,2]
[380227976,1755618643278,-830.84,0.00019452,2]
[380227977,1755618643287,-480.0,0.00019452,2]
[380227978,1755618643297,-480.0,0.00019452,2]
[380227979,1755618643306,-480.0,0.00019452,2]
[380227980,1755618643315,-480.0,0.00019452,2]
[380227981,1755618643327,-460.0,0.00019452,2]
[380227982,1755618643336,-480.0,0.00019452,2]
[380227983,1755618643345,-480.0,0.00019452,2]
[380227984,1755618643354,-480.0,0.00019452,2]
[380227985,1755618643363,-480.0,0.00019452,2]
[380227986,1755618643373,-480.0,0.00019452,2]
[380227987,1755618643382,-544.61,0.00019452,2]
[380227988,1755618643391,-502.17,0.00019452,2]
[380227989,1755618643400,-480.0,0.00019452,2]
[380227990,1755618643410,-445.19119939,0.00019452,2]
[380227991,1755618643419,-440.0,0.00019452,2]
[380227992,1755618643429,-480.0,0.00019452,2]
[380227993,1755618643438,-1037.36,0.00019452,2]
[380227994,1755618643448,-480.0,0.00019452,2]
[380227995,1755618643459,-480.0,0.00019452,2]
[380227996,1755618643468,-480.0,0.00019452,2]
[380227997,1755618643477,-742.49,0.00019452,2]
[380227998,1755618643487,-1543.75,0.00019452,2]
[380227999,1755618643496,-480.0,0.00019452,2]
[380228000,1755618643507,-480.0,0.00019452,2]
[380228001,1755618643517,-480.0,0.00019452,2]
[380228002,1755618643527,-480.0,0.00019452,2]
[380228003,1755618643536,-480.0,0.00019452,2]
[380228004,1755618643545,-480.9948733,0.00019452,2]
[380228005,1755618643555,-480.0,0.00019452,2]
[380228006,1755618643564,-480.0,0.00019452,2]
[380228008,1755618643573,-480.0,0.00019452,2]
[380228009,1755618643584,-320.0,0.00019452,2]
[380228010,1755618643593,-480.0,0.00019452,2]
[380228011,1755618643603,-480.0,0.00019452,2]
[380228012,1755618643612,-480.0,0.00019452,2]
[380228013,1755618643622,-1344.35,0.00019452,2]
[380228014,1755618643631,-481.4425772,0.00019452,2]
[380228015,1755618643640,-2717.77,0.00019452,2]
[380228016,1755618643649,-1307.59,0.00019452,2]
[380228017,1755618643659,-1327.62,0.00019452,2]
[380228018,1755618643668,-480.0,0.00019452,2]
[380228019,1755618643677,-480.0,0.00019452,2]
[380228020,1755618643687,-480.0,0.00019452,2]
[380228021,1755618643696,-480.0,0.00019452,2]
[380228022,1755618643706,-595.01,0.00019452,2]
[380228023,1755618643715,-961.07,0.00019452,2]
[380228024,1755618643725,-1261.24,0.00019452,2]
[380228025,1755618643734,-1125.26,0.00019452,2]
[380228026,1755618643744,-480.0,0.00019452,2]
[380228027,1755618643753,-480.0,0.00019452,2]
[380228028,1755618643767,-480.0,0.00019452,2]
[380228029,1755618643776,-640.29,0.00019452,2]
[380228030,1755618643786,-480.0,0.00019452,2]
[380228031,1755618643795,-480.0,0.00019452,2]
[380228032,1755618643805,-431.3706407,0.00019452,2]
[380228033,1755618643814,-480.0,0.00019452,2]
[380228034,1755618643823,-480.0,0.00019452,2]
[380228035,1755618643834,-480.0,0.00019452,2]
[380228036,1755618643845,-480.0,0.00019452,2]
[380228037,1755618643855,-836.41,0.00019452,2]
[380228038,1755618643864,-480.0,0.00019452,2]
[380228039,1755618643874,-480.0,0.00019452,2]
[380228040,1755618643883,-587.75,0.00019452,2]
[380228041,1755618643892,-480.0,0.00019452,2]
[380228042,1755618643902,-502.07,0.00019452,2]
[380228043,1755618643911,-1137.61,0.00019452,2]
[380228044,1755618643921,-954.51,0.00019452,2]
[380228045,1755618643931,-1343.33,0.00019452,2]
[380228046,1755618643940,-167.20581714,0.00019452,2]
[380228047,1755618643950,-423.97386721,0.00019452,2]
[380228048,1755618643959,-480.0,0.00019452,2]
[380228049,1755618643968,-947.83,0.00019452,2]
[380228050,1755618643978,-480.0,0.00019452,2]
[380228051,1755618643987,-480.0,0.00019452,2]
[380228052,1755618643996,-480.0,0.00019452,2]
[380228053,1755618644006,-602.28,0.00019452,2]
[380228054,1755618644015,-400.0,0.00019452,2]
[380228055,1755618644025,-480.0,0.00019452,2]
[380228056,1755618644035,-480.0,0.00019452,2]
[380228057,1755618644044,-524.82,0.00019452,2]
[380228058,1755618644054,-483.68,0.00019452,2]
[380228059,1755618644064,-480.0,0.00019452,2]
[380228060,1755618644074,-480.0,0.00019452,2]
[380228061,1755618644088,-500.07,0.00019452,2]
[380228062,1755618644098,-480.0,0.00019452,2]
[380228063,1755618644107,-480.0,0.00019452,2]
[380228065,1755618644117,-2586.75,0.00019452,2]
[380228067,1755618644126,-999.92,0.00019452,2]
[380228069,1755618644136,-480.0,0.00019452,2]
[380228071,1755618644146,-291.47731221,0.00019452,2]
[380228072,1755618644155,-480.0,0.00019452,2]
[380228074,1755618644165,-391.06548748,0.00019452,2]
[380228075,1755618644175,-240.0,0.00019452,2]
[380228076,1755618644187,-3164.0,0.00019452,2]
[380228077,1755618644196,-569.41,0.00019452,2]
[380228078,1755618644206,-544.22190305,0.00019452,2]
[380228080,1755618644216,-762.55,0.00019452,2]
[380228082,1755618644226,-480.0,0.00019452,2]
[380228084,1755618644235,-480.0,0.00019452,2]
[380228085,1755618644245,-480.0,0.00019452,2]
[380228086,1755618644254,-480.0,0.00019452,2]
[380228087,1755618644264,-480.0,0.00019452,2]
[380228088,1755618644274,-480.0,0.00019452,2]
[380228089,1755618644283,-480.0,0.00019452,2]
[380228090,1755618644292,-480.0,0.00019452,2]
[380228091,1755618644302,-1158.3,0.00019452,2]
[380228092,1755618644311,-480.0,0.00019452,2]
[380228093,1755618644321,-380.78812035,0.00019452,2]
[380228094,1755618644333,-480.0,0.00019452,2]
[380228095,1755618644342,-480.0,0.00019452,2]
[380228096,1755618644353,-769.12,0.00019452,2]
[380228097,1755618644363,-480.0,0.00019452,2]
[380228098,1755618644372,-421.7992413,0.00019452,2]
[380228099,1755618644382,-1823.15,0.00019452,2]
[380228100,1755618644391,-480.0,0.00019452,2]
[380228102,1755618644401,-1160.5,0.00019452,2]
[380228103,1755618644410,-344.20003085,0.00019452,2]
[380228104,1755618644419,-531.16080314,0.00019452,2]
[380228105,1755618644428,-480.0,0.00019452,2]
[380228106,1755618644438,-480.0,0.00019452,2]
[380228107,1755618644447,-480.0,0.00019452,2]
[380228108,1755618644457,-480.0,0.00019452,2]
[380228109,1755618644467,-935.01,0.00019452,2]
[380228110,1755618644476,-480.0,0.00019452,2]
[380228111,1755618644486,-1886.12,0.00019452,2]
[380228112,1755618644496,-383.77239721,0.00019452,2]
[380228113,1755618644505,-461.31979162,0.00019452,2]
[380228114,1755618644515,-480.0,0.00019452,2]
[380228115,1755618644524,-442.11333645,0.00019452,2]
[380228116,1755618644534,-473.96413412,0.00019452,2]
[380228117,1755618644544,-553.21,0.00019452,2]
[380228118,1755618644554,-528.62,0.00019452,2]
[380228119,1755618644564,-480.0,0.00019452,2]
[380228120,1755618644573,-6469.37,0.00019452,2]
[380228121,1755618644585,-500.0,0.00019452,2]
[380228122,1755618644594,-300.0,0.00019459,20]
[380228123,1755618644604,-300.0,0.00019459,20]
[380228124,1755618644613,-300.0,0.00019459,20]
[380228125,1755618644624,-300.0,0.00019459,20]
[380228126,1755618644634,-300.0,0.00019459,20]
[380228127,1755618644643,-300.0,0.00019459,20]
[380228128,1755618644653,-300.0,0.00019459,20]
[380228129,1755618644663,-300.0,0.00019459,20]
[380228130,1755618644672,-300.0,0.00019459,20]
[380228131,1755618644682,-300.0,0.00019459,20]
[380228132,1755618644691,-300.0,0.00019459,20]
[380228133,1755618644701,-300.0,0.00019459,20]
[380228134,1755618644711,-300.0,0.00019459,20]
[380228135,1755618644720,-300.0,0.00019459,20]
[380228136,1755618644730,-300.0,0.00019459,20]
[380228137,1755618644739,-300.0,0.00019459,20]
[380228138,1755618644748,-300.0,0.00019459,20]
[380228139,1755618644758,-300.0,0.00019459,20]
[380228140,1755618644889,-300.0,0.00019459,20]
[380228141,1755618644898,-300.0,0.00019459,20]
[380228142,1755618644907,-500.0,0.00019473,2]
[380228143,1755618644917,-2264.71755116,0.00019489,2]
[380228144,1755618644927,-347.0,0.00019489,2]
[380228145,1755618644936,-2264.71755116,0.00019695,2]
[380228146,1755618644945,-500.0,0.00019721,2]
[380228147,1755618644955,-1000.0,0.00019721,2]
[380228148,1755618644964,-480.0,0.00019726,2]
[380228149,1755618644973,-480.0,0.00019726,2]
[380228150,1755618644983,-1576.07,0.00019726,2]
[380228151,1755618644992,-480.0,0.00019726,2]
[380228152,1755618645002,-480.0,0.00019726,2]
[380228153,1755618645011,-480.0,0.00019726,2]
[380228154,1755618645021,-480.0,0.00019726,2]
[380228155,1755618645030,-480.0,0.00019726,2]
[380228156,1755618645039,-480.0,0.00019726,2]
[380228157,1755618645049,-480.0,0.00019726,2]
[380228158,1755618645058,-480.0,0.00019726,2]
[380228159,1755618645067,-480.0,0.00019726,2]
[380228160,1755618645077,-480.0,0.00019726,2]
[380228161,1755618645086,-480.0,0.00019726,2]
[380228162,1755618645095,-2883.4,0.00019726,2]
[380228163,1755618645105,-480.0,0.00019726,2]
[380228164,1755618645114,-480.0,0.00019726,2]
[380228165,1755618645124,-480.0,0.00019726,2]
[380228166,1755618645134,-480.0,0.00019726,2]
[380228167,1755618645144,-443.29717523,0.00019726,2]
[380228168,1755618645153,-480.0,0.00019726,2]
[380228169,1755618645162,-480.0,0.00019726,2]
[380228170,1755618645172,-480.0,0.00019726,2]
[380228171,1755618645181,-480.0,0.00019726,2]
[380228172,1755618645190,-469.91576214,0.00019726,2]
[380228173,1755618645200,-480.0,0.00019726,2]
[380228174,1755618645209,-480.0,0.00019726,2]
[380228175,1755618645219,-610.46,0.00019726,2]
[380228176,1755618645228,-480.0,0.00019726,2]
[380228177,1755618645237,-466.99615039,0.00019726,2]
[380228178,1755618645247,-480.0,0.00019726,2]
[380228179,1755618645257,-480.0,0.00019726,2]
[380228180,1755618645266,-522.41,0.00019726,2]
[380228181,1755618645276,-480.0,0.00019726,2]
[380228182,1755618645286,-480.0,0.00019726,2]
[380228183,1755618645295,-2992.99,0.00019726,2]
[380228184,1755618645305,-463.23249831,0.00019726,2]
[380228185,1755618645314,-216.70394085,0.00019726,2]
[380228186,1755618645324,-480.0,0.00019726,2]
[380228187,1755618645335,-480.0,0.00019726,2]
[380228188,1755618645345,-480.0,0.00019726,2]
[380228189,1755618645355,-480.0,0.00019726,2]
[380228190,1755618645364,-824.41,0.00019726,2]
[380228191,1755618645373,-480.0,0.00019726,2]
[380228192,1755618645383,-480.0,0.00019726,2]
[380228193,1755618645392,-522.37,0.00019726,2]
[380228194,1755618645402,-480.0,0.00019726,2]
[380228195,1755618645412,-480.0,0.00019726,2]
[380228196,1755618645422,-480.0,0.00019726,2]
[380228197,1755618645432,-462.5317901,0.00019726,2]
[380228198,1755618645442,-480.0,0.00019726,2]
[380228199,1755618645452,-480.0,0.00019726,2]
[380228200,1755618645461,-480.0,0.00019726,2]
[380228201,1755618645471,-489.17,0.00019726,2]
[380228202,1755618645480,-480.0,0.00019726,2]
[380228203,1755618645490,-548.22,0.00019726,2]
[380228204,1755618645499,-480.0,0.00019726,2]
[380228205,1755618645509,-463.39535369,0.00019726,2]
[380228206,1755618645518,-480.0,0.00019726,2]
[380228207,1755618645528,-520.07,0.00019726,2]
[380228208,1755618645538,-480.0,0.00019726,2]
[380228209,1755618645547,-480.0,0.00019726,2]
[380228210,1755618645556,-1198.36,0.00019726,2]
[380228211,1755618645566,-480.0,0.00019726,2]
[380228212,1755618645576,-480.0,0.00019726,2]
[380228213,1755618645586,-460.0,0.00019726,2]
[380228214,1755618645595,-480.0,0.00019726,2]
[380228215,1755618645605,-480.0,0.00019726,2]
[380228216,1755618645615,-1089.51,0.00019726,2]
[380228217,1755618645625,-480.0,0.00019726,2]
[380228218,1755618645634,-543.75,0.00019726,2]
[380228220,1755618645643,-480.0,0.00019726,2]
[380228221,1755618645653,-1866.23,0.00019726,2]
[380228222,1755618645663,-480.0,0.00019726,2]
[380228223,1755618645672,-808.6,0.00019726,2]
[380228224,1755618645682,-1534.07,0.00019726,2]
[380228225,1755618645691,-440.0,0.00019726,2]
[380228226,1755618645701,-782.67,0.00019726,2]
[380228227,1755618645710,-480.0,0.00019726,2]
[380228228,1755618645720,-480.0,0.00019726,2]
[380228229,1755618645729,-480.0,0.00019726,2]
[380228230,1755618645739,-2156.47,0.00019726,2]
[380228231,1755618645749,-480.0,0.00019726,2]
[380228232,1755618645759,-850.8,0.00019726,2]
[380228233,1755618645769,-533.17,0.00019726,2]
[380228234,1755618645783,-480.0,0.00019726,2]
[380228235,1755618645793,-480.0,0.00019726,2]
[380228236,1755618645803,-500.56842257,0.00019726,2]
[380228237,1755618645813,-175.00713836,0.00019726,2]
[380228238,1755618645823,-1568.73,0.00019726,2]
[380228239,1755618645833,-480.0,0.00019726,2]
[380228240,1755618645843,-480.0,0.00019726,2]
[380228241,1755618645853,-480.0,0.00019726,2]
[380228242,1755618645863,-480.0,0.00019726,2]
[380228243,1755618645873,-480.0,0.00019726,2]
[380228244,1755618645882,-480.0,0.00019726,2]
[380228245,1755618645891,-480.0,0.00019726,2]
[380228246,1755618645902,-480.0,0.00019726,2]
[380228247,1755618645911,-480.0,0.00019726,2]
[380228248,1755618645920,-505.83,0.00019726,2]
[380228249,1755618645930,-480.0,0.00019726,2]
[380228250,1755618645940,-480.0,0.00019726,2]
[380228251,1755618645949,-480.0,0.00019726,2]
[380228252,1755618645959,-480.0,0.00019726,2]
[380228253,1755618645969,-480.0,0.00019726,2]
[380228254,1755618645978,-480.0,0.00019726,2]
[380228255,1755618645988,-480.0,0.00019726,2]
[380228256,1755618645998,-480.0,0.00019726,2]
[380228257,1755618646007,-238.74418226,0.00019726,2]
[380228258,1755618646018,-480.0,0.00019726,2]
[380228259,1755618646027,-480.0,0.00019726,2]
[380228260,1755618646037,-480.0,0.00019726,2]
[380228261,1755618646047,-8244.61,0.00019726,2]
[380228262,1755618646057,-480.0,0.00019726,2]
[380228263,1755618646067,-480.0,0.00019726,2]
[380228264,1755618646077,-659.66,0.00019726,2]
[380228265,1755618646090,-480.0,0.00019726,2]
[380228266,1755618646100,-976.04,0.00019726,2]
[380228267,1755618646109,-480.0,0.00019726,2]
[380228268,1755618646119,-625.16,0.00019726,2]
[380228269,1755618646129,-1000.0,0.00019726,2]
[380228270,1755618646139,-1000.0,0.00019726,2]
[380228271,1755618646149,-1000.0,0.00019726,2]
[380228272,1755618646158,-1000.0,0.00019726,2]
[380228273,1755618646168,-480.0,0.00019726,2]
[380228274,1755618646178,-574.41581703,0.00019726,2]
[380228275,1755618646188,-480.0,0.00019726,2]
[380228276,1755618646198,-480.0,0.00019726,2]
[380228277,1755618646208,-480.0,0.00019726,2]
[380228278,1755618646217,-547.61,0.00019726,2]
[380228279,1755618646227,-604.27,0.00019726,2]
[380228280,1755618646237,-747.0,0.00019726,2]
[380228281,1755618646247,-480.0,0.00019726,2]
[380228282,1755618646256,-480.0,0.00019726,2]
[380228283,1755618646266,-480.0,0.00019726,2]
[380228284,1755618646275,-480.0,0.00019726,2]
[380228285,1755618646285,-480.0,0.00019726,2]
[380228286,1755618646294,-480.0,0.00019726,2]
[380228287,1755618646303,-800.68,0.00019726,2]
[380228288,1755618646314,-480.0,0.00019726,2]
[380228289,1755618646323,-480.0,0.00019726,2]
[380228290,1755618646336,-480.0,0.00019726,2]
[380228291,1755618646346,-547.63,0.00019726,2]
[380228292,1755618646357,-480.0,0.00019726,2]
[380228293,1755618646366,-480.0,0.00019726,2]
[380228294,1755618646376,-9407.72,0.00019726,2]
[380228295,1755618646386,-830.84,0.00019726,2]
[380228297,1755618646395,-480.0,0.00019726,2]
[380228298,1755618646405,-460.0,0.00019726,2]
[380228299,1755618646415,-480.0,0.00019726,2]
[380228300,1755618646424,-480.0,0.00019726,2]
[380228301,1755618646434,-480.0,0.00019726,2]
[380228302,1755618646444,-480.0,0.00019726,2]
[380228303,1755618646454,-480.0,0.00019726,2]
[380228304,1755618646464,-480.0,0.00019726,2]
[380228305,1755618646473,-544.61,0.00019726,2]
[380228306,1755618646482,-502.17,0.00019726,2]
[380228307,1755618646492,-422.83590078,0.00019726,2]
[380228308,1755618646503,-480.0,0.00019726,2]
[380228309,1755618646515,-1037.36,0.00019726,2]
[380228310,1755618646525,-480.0,0.00019726,2]
[380228311,1755618646535,-480.0,0.00019726,2]
[380228312,1755618646544,-480.0,0.00019726,2]
[380228313,1755618646554,-742.49,0.00019726,2]
[380228314,1755618646563,-1543.75,0.00019726,2]
[380228315,1755618646573,-319.51452337,0.00019726,2]
[380228316,1755618646586,-480.0,0.00019726,2]
[380228317,1755618646595,-480.0,0.00019726,2]
[380228318,1755618646605,-480.0,0.00019726,2]
[380228319,1755618646615,-480.0,0.00019726,2]
[380228320,1755618646624,-581.04965647,0.00019726,2]
[380228321,1755618646634,-537.20890843,0.00019726,2]
[380228322,1755618646644,-480.0,0.00019726,2]
[380228323,1755618646654,-480.0,0.00019726,2]
[380228324,1755618646665,-480.0,0.00019726,2]
[380228325,1755618646683,-1344.35,0.00019726,2]
[380228326,1755618646693,-2717.77,0.00019726,2]
[380228327,1755618646703,-1307.59,0.00019726,2]
[380228328,1755618646713,-151.0,0.00019726,2]
[380228329,1755618646723,-1327.62,0.00019726,2]
[380228330,1755618646732,-151.0,0.00019726,2]
[380228331,1755618646741,-151.0,0.00019726,2]
[380228332,1755618646751,-151.0,0.00019726,2]
[380228333,1755618646761,-151.0,0.00019726,2]
[380228334,1755618646771,-151.0,0.00019726,2]
[380228335,1755618646786,-480.0,0.00019726,2]